[Event "Titled Tuesday Blitz February 07 Late 2023"]
[White "Zochowski, Kacper"]
[Black "Miszler, Levente"]
[WhiteFideId "1125494"]
[BlackFideId "763276"]
[WhiteElo "2262"]
[BlackElo "2271"]
[Result "1-0"]
[Round "11"]
[TimeControl "180+2"]
[Date "2023.02.07"]
[WhiteClock "0:00:54"]
[BlackClock "0:01:42"]

1. Nf3 {[%clk 0:02:39]}  Nf6 {[%clk 0:02:59]} 2. c4 {[%clk 0:02:39]}  c5 {[%clk 0:02:58]} 3. b3 {[%clk 0:02:39]}  g6 {[%clk 0:02:58]} 4. Bb2 {[%clk 0:02:40]}  Bg7 {[%clk 0:02:58]} 5. g3 {[%clk 0:02:41]}  O-O {[%clk 0:02:58]} 6. Bg2 {[%clk 0:02:42]}  Nc6 {[%clk 0:02:59]} 7. O-O {[%clk 0:02:42]}  b6 {[%clk 0:02:59]} 8. Nc3 {[%clk 0:02:42]}  Bb7 {[%clk 0:02:59]} 9. e3 {[%clk 0:02:43]}  e6 {[%clk 0:02:58]} 10. d4 {[%clk 0:02:42]}  d5 {[%clk 0:02:54]} 11. Qc2 {[%clk 0:02:39]}  Nb4 {[%clk 0:02:52]} 12. Qd2 {[%clk 0:02:38]}  dxc4 {[%clk 0:02:51]} 13. bxc4 {[%clk 0:02:38]}  Ne4 {[%clk 0:02:50]} 14. Nxe4 {[%clk 0:02:37]}  Bxe4 {[%clk 0:02:51]} 15. a3 {[%clk 0:02:38]}  Nc6 {[%clk 0:02:50]} 16. Rfd1 {[%clk 0:02:34]}  Rc8 {[%clk 0:02:47]} 17. d5 {[%clk 0:02:34]}  exd5 {[%clk 0:02:40]} 18. Bxg7 {[%clk 0:02:33]}  Kxg7 {[%clk 0:02:40]} 19. cxd5 {[%clk 0:02:34]}  Na5 {[%clk 0:02:36]} 20. Rac1 {[%clk 0:02:03]}  Qf6 {[%clk 0:02:33]} 21. Qc3 {[%clk 0:01:59]}  Rfd8 {[%clk 0:02:31]} 22. Ng5 {[%clk 0:01:44]}  Bxg2 {[%clk 0:02:13]} 23. Kxg2 {[%clk 0:01:41]}  Qxc3 {[%clk 0:02:14]} 24. Rxc3 {[%clk 0:01:42]}  c4 {[%clk 0:02:15]} 25. a4 {[%clk 0:01:31]}  Rc5 {[%clk 0:02:12]} 26. e4 {[%clk 0:01:30]}  h6 {[%clk 0:02:10]} 27. Nf3 {[%clk 0:01:29]}  f5 {[%clk 0:02:06]} 28. Nd4 {[%clk 0:01:30]}  Kf6 {[%clk 0:02:01]} 29. Ne6 {[%clk 0:01:29]}  Rd6 {[%clk 0:01:58]} 30. Nxc5 {[%clk 0:01:26]}  bxc5 {[%clk 0:01:59]} 31. f3 {[%clk 0:01:12]}  fxe4 {[%clk 0:01:59]} 32. fxe4 {[%clk 0:01:13]}  Ke5 {[%clk 0:01:59]} 33. Kf3 {[%clk 0:01:05]}  Nb3 {[%clk 0:01:53]} 34. Rxc4 {[%clk 0:01:02]}  Nd4+ {[%clk 0:01:53]} 35. Kg2 {[%clk 0:01:02]}  Kxe4 {[%clk 0:01:51]} 36. Rxc5 {[%clk 0:00:59]}  Ne6 {[%clk 0:01:44]} 37. dxe6 {[%clk 0:00:53]}  Rxd1 {[%clk 0:01:42]} 38. e7 {[%clk 0:00:54]} 1-0


[Site "https://www.chess.com"]

[Event "Titled Tuesday Blitz February 07 Late 2023"]
[White "Buchenau, Frank"]
[Black "Harish, Neeraj"]
[WhiteFideId "4604350"]
[BlackFideId "30958130"]
[WhiteElo "2222"]
[BlackElo "2232"]
[Result "1-0"]
[Round "11"]
[TimeControl "180+2"]
[Date "2023.02.07"]
[WhiteClock "0:01:06"]
[BlackClock "0:00:56"]

1. e4 {[%clk 0:03:00]}  c5 {[%clk 0:02:59]} 2. Nf3 {[%clk 0:03:00]}  Nc6 {[%clk 0:02:59]} 3. Bb5 {[%clk 0:02:59]}  g6 {[%clk 0:02:58]} 4. Bxc6 {[%clk 0:02:59]}  dxc6 {[%clk 0:02:59]} 5. d3 {[%clk 0:02:58]}  Bg7 {[%clk 0:02:59]} 6. O-O {[%clk 0:02:58]}  Nf6 {[%clk 0:03:00]} 7. a4 {[%clk 0:02:57]}  a5 {[%clk 0:02:56]} 8. Na3 {[%clk 0:02:55]}  Nd7 {[%clk 0:02:54]} 9. Nc4 {[%clk 0:02:45]}  e5 {[%clk 0:02:54]} 10. Nd6+ {[%clk 0:02:43]}  Ke7 {[%clk 0:02:47]} 11. Nxc8+ {[%clk 0:02:42]}  Rxc8 {[%clk 0:02:47]} 12. c3 {[%clk 0:02:36]}  Re8 {[%clk 0:02:46]} 13. d4 {[%clk 0:02:36]}  cxd4 {[%clk 0:02:45]} 14. cxd4 {[%clk 0:02:36]}  exd4 {[%clk 0:02:45]} 15. Bg5+ {[%clk 0:02:22]}  f6 {[%clk 0:02:44]} 16. Qxd4 {[%clk 0:02:21]}  Kf7 {[%clk 0:02:25]} 17. Qc4+ {[%clk 0:02:16]}  Kf8 {[%clk 0:02:23]} 18. Bf4 {[%clk 0:02:11]}  Ne5 {[%clk 0:02:19]} 19. Bxe5 {[%clk 0:02:08]}  fxe5 {[%clk 0:02:14]} 20. Rad1 {[%clk 0:02:04]}  Qe7 {[%clk 0:02:06]} 21. Rd3 {[%clk 0:01:55]}  Bf6 {[%clk 0:02:03]} 22. Rfd1 {[%clk 0:01:54]}  Rcd8 {[%clk 0:02:01]} 23. g3 {[%clk 0:01:43]}  Kg7 {[%clk 0:01:53]} 24. Kg2 {[%clk 0:01:42]}  Rxd3 {[%clk 0:01:46]} 25. Qxd3 {[%clk 0:01:39]}  Rd8 {[%clk 0:01:37]} 26. Qxd8 {[%clk 0:01:36]}  Qxd8 {[%clk 0:01:37]} 27. Rxd8 {[%clk 0:01:36]}  Bxd8 {[%clk 0:01:37]} 28. Nxe5 {[%clk 0:01:36]}  Bf6 {[%clk 0:01:38]} 29. Nd3 {[%clk 0:01:34]}  Bd4 {[%clk 0:01:37]} 30. f4 {[%clk 0:01:31]}  c5 {[%clk 0:01:37]} 31. b3 {[%clk 0:01:31]}  Kf6 {[%clk 0:01:36]} 32. Kf3 {[%clk 0:01:30]}  Ke6 {[%clk 0:01:33]} 33. g4 {[%clk 0:01:29]}  h6 {[%clk 0:01:31]} 34. h4 {[%clk 0:01:27]}  b6 {[%clk 0:01:31]} 35. f5+ {[%clk 0:01:27]}  gxf5 {[%clk 0:01:29]} 36. exf5+ {[%clk 0:01:26]}  Kf6 {[%clk 0:01:29]} 37. Kf4 {[%clk 0:01:25]}  Bc3 {[%clk 0:01:29]} 38. g5+ {[%clk 0:01:25]}  hxg5+ {[%clk 0:01:26]} 39. hxg5+ {[%clk 0:01:26]}  Kg7 {[%clk 0:01:26]} 40. f6+ {[%clk 0:01:23]}  Kf8 {[%clk 0:01:12]} 41. Kf5 {[%clk 0:01:21]}  Bd4 {[%clk 0:01:07]} 42. g6 {[%clk 0:01:21]}  b5 {[%clk 0:01:07]} 43. axb5 {[%clk 0:01:16]}  c4 {[%clk 0:01:07]} 44. bxc4 {[%clk 0:01:15]}  a4 {[%clk 0:01:07]} 45. Nf4 {[%clk 0:01:08]}  Bc5 {[%clk 0:00:56]} 46. Ne6+ {[%clk 0:01:08]}  Kg8 {[%clk 0:00:57]} 47. f7+ {[%clk 0:01:07]}  Kh8 {[%clk 0:00:56]} 48. g7+ {[%clk 0:01:07]}  Kh7 {[%clk 0:00:56]} 49. g8=Q+ {[%clk 0:01:06]}  Kh6 {[%clk 0:00:56]} 50. Qg6# {[%clk 0:01:06]} 1-0


[Site "https://www.chess.com"]

[Event "Titled Tuesday Blitz February 07 Late 2023"]
[White "Fathy, Elameir"]
[Black "Mesa Cruz, Juan Carlos"]
[WhiteFideId "10600396"]
[BlackFideId "6423400"]
[WhiteElo "2300"]
[BlackElo "2122"]
[Result "1-0"]
[Round "11"]
[TimeControl "180+2"]
[Date "2023.02.07"]
[WhiteClock "0:00:13"]
[BlackClock "0:00:09"]

1. d4 {[%clk 0:02:59]}  Nf6 {[%clk 0:02:55]} 2. c4 {[%clk 0:03:00]}  e6 {[%clk 0:02:53]} 3. Nf3 {[%clk 0:03:00]}  Bb4+ {[%clk 0:02:53]} 4. Bd2 {[%clk 0:03:00]}  Qe7 {[%clk 0:02:53]} 5. e3 {[%clk 0:03:00]}  O-O {[%clk 0:02:44]} 6. Bd3 {[%clk 0:03:00]}  b6 {[%clk 0:02:43]} 7. O-O {[%clk 0:02:59]}  Bb7 {[%clk 0:02:43]} 8. a3 {[%clk 0:02:59]}  Bxd2 {[%clk 0:02:43]} 9. Nbxd2 {[%clk 0:03:00]}  d5 {[%clk 0:02:43]} 10. b4 {[%clk 0:02:56]}  Nbd7 {[%clk 0:02:41]} 11. Qc2 {[%clk 0:02:54]}  Rac8 {[%clk 0:02:36]} 12. Rab1 {[%clk 0:02:52]}  e5 {[%clk 0:02:34]} 13. dxe5 {[%clk 0:02:52]}  Nxe5 {[%clk 0:02:34]} 14. Nxe5 {[%clk 0:02:52]}  Qxe5 {[%clk 0:02:34]} 15. Nf3 {[%clk 0:02:51]}  Qh5 {[%clk 0:02:32]} 16. c5 {[%clk 0:02:49]}  Rfe8 {[%clk 0:02:23]} 17. c6 {[%clk 0:02:11]}  Ba8 {[%clk 0:02:17]} 18. b5 {[%clk 0:02:11]}  Rcd8 {[%clk 0:01:59]} 19. a4 {[%clk 0:02:10]}  Ne4 {[%clk 0:01:55]} 20. Rbd1 {[%clk 0:02:02]}  Nc5 {[%clk 0:01:53]} 21. Be2 {[%clk 0:02:02]}  a6 {[%clk 0:01:52]} 22. Nd4 {[%clk 0:01:53]}  Qg6 {[%clk 0:01:46]} 23. Qxg6 {[%clk 0:01:52]}  hxg6 {[%clk 0:01:45]} 24. Ra1 {[%clk 0:01:49]}  Ne6 {[%clk 0:01:43]} 25. Rfd1 {[%clk 0:01:48]}  Nc5 {[%clk 0:01:39]} 26. Rd2 {[%clk 0:01:41]}  Re4 {[%clk 0:01:37]} 27. Rb2 {[%clk 0:01:36]}  Rde8 {[%clk 0:01:32]} 28. Bf3 {[%clk 0:01:33]}  R4e5 {[%clk 0:01:32]} 29. Nb3 {[%clk 0:01:26]}  Ne6 {[%clk 0:00:56]} 30. h3 {[%clk 0:01:24]}  g5 {[%clk 0:00:48]} 31. Rd2 {[%clk 0:01:18]}  axb5 {[%clk 0:00:48]} 32. axb5 {[%clk 0:01:18]}  d4 {[%clk 0:00:49]} 33. Nxd4 {[%clk 0:00:53]}  Nxd4 {[%clk 0:00:44]} 34. Rxd4 {[%clk 0:00:54]}  Rxb5 {[%clk 0:00:43]} 35. Rd7 {[%clk 0:00:53]}  Rc8 {[%clk 0:00:37]} 36. Rad1 {[%clk 0:00:42]}  Kh7 {[%clk 0:00:29]} 37. Rd8 {[%clk 0:00:37]}  Rxd8 {[%clk 0:00:29]} 38. Rxd8 {[%clk 0:00:38]}  Ra5 {[%clk 0:00:29]} 39. Rd7 {[%clk 0:00:34]}  Ra7 {[%clk 0:00:28]} 40. Rxf7 {[%clk 0:00:34]}  b5 {[%clk 0:00:28]} 41. Rf8 {[%clk 0:00:28]}  Ra6 {[%clk 0:00:22]} 42. Be4+ {[%clk 0:00:28]}  g6 {[%clk 0:00:21]} 43. Rf7+ {[%clk 0:00:29]}  Kh6 {[%clk 0:00:21]} 44. Rxc7 {[%clk 0:00:29]}  b4 {[%clk 0:00:17]} 45. Rc8 {[%clk 0:00:22]}  b3 {[%clk 0:00:16]} 46. c7 {[%clk 0:00:18]}  Bxe4 {[%clk 0:00:13]} 47. Rh8+ {[%clk 0:00:18]}  Kg7 {[%clk 0:00:12]} 48. c8=Q {[%clk 0:00:19]}  Ra1+ {[%clk 0:00:05]} 49. Kh2 {[%clk 0:00:19]}  Ra8 {[%clk 0:00:05]} 50. Qxa8 {[%clk 0:00:16]}  Bxa8 {[%clk 0:00:05]} 51. Rxa8 {[%clk 0:00:16]}  b2 {[%clk 0:00:06]} 52. Rb8 {[%clk 0:00:17]}  Kh6 {[%clk 0:00:07]} 53. Rxb2 {[%clk 0:00:16]}  Kh5 {[%clk 0:00:08]} 54. Kg3 {[%clk 0:00:14]}  Kh6 {[%clk 0:00:08]} 55. Rb8 {[%clk 0:00:12]}  Kh5 {[%clk 0:00:09]} 56. Rh8# {[%clk 0:00:13]} 1-0


[Site "https://www.chess.com"]

[Event "Titled Tuesday Blitz February 07 Late 2023"]
[White "Talbi, Chafik"]
[Black "Forgacs, Attila Jr."]
[WhiteFideId "7903715"]
[BlackFideId "773654"]
[WhiteElo "2224"]
[BlackElo "2264"]
[Result "0-1"]
[Round "11"]
[TimeControl "180+2"]
[Date "2023.02.07"]
[WhiteClock "0:00:01"]
[BlackClock "0:00:20"]

1. e4 {[%clk 0:02:26]}  e5 {[%clk 0:02:56]} 2. Nf3 {[%clk 0:02:25]}  Nc6 {[%clk 0:02:55]} 3. Bb5 {[%clk 0:02:25]}  a6 {[%clk 0:02:55]} 4. Ba4 {[%clk 0:02:24]}  Nf6 {[%clk 0:02:56]} 5. d3 {[%clk 0:02:15]}  d6 {[%clk 0:02:56]} 6. c3 {[%clk 0:02:12]}  g6 {[%clk 0:02:55]} 7. h3 {[%clk 0:02:07]}  Bg7 {[%clk 0:02:55]} 8. Be3 {[%clk 0:02:05]}  O-O {[%clk 0:02:56]} 9. Nbd2 {[%clk 0:02:05]}  b5 {[%clk 0:02:56]} 10. Bb3 {[%clk 0:02:01]}  Nb8 {[%clk 0:02:56]} 11. a4 {[%clk 0:01:56]}  Bb7 {[%clk 0:02:56]} 12. axb5 {[%clk 0:01:52]}  axb5 {[%clk 0:02:57]} 13. Rxa8 {[%clk 0:01:52]}  Bxa8 {[%clk 0:02:58]} 14. O-O {[%clk 0:01:51]}  c5 {[%clk 0:02:57]} 15. Qa1 {[%clk 0:01:47]}  Nbd7 {[%clk 0:02:57]} 16. Qa6 {[%clk 0:01:43]}  Qb6 {[%clk 0:02:49]} 17. Ra1 {[%clk 0:01:40]}  Bb7 {[%clk 0:02:34]} 18. Qxb6 {[%clk 0:01:36]}  Nxb6 {[%clk 0:02:34]} 19. Ra7 {[%clk 0:01:35]}  Rb8 {[%clk 0:02:34]} 20. Ng5 {[%clk 0:01:34]}  Nc8 {[%clk 0:02:19]} 21. Ra5 {[%clk 0:01:19]}  c4 {[%clk 0:02:18]} 22. dxc4 {[%clk 0:01:16]}  h6 {[%clk 0:02:17]} 23. Ngf3 {[%clk 0:00:57]}  bxc4 {[%clk 0:02:17]} 24. Bxc4 {[%clk 0:00:53]}  Nxe4 {[%clk 0:02:17]} 25. Nxe4 {[%clk 0:00:52]}  Bxe4 {[%clk 0:02:18]} 26. Nd2 {[%clk 0:00:51]}  Bc6 {[%clk 0:02:11]} 27. b4 {[%clk 0:00:50]}  Ne7 {[%clk 0:02:00]} 28. Ra7 {[%clk 0:00:48]}  Kf8 {[%clk 0:01:58]} 29. Ba2 {[%clk 0:00:33]}  f5 {[%clk 0:01:57]} 30. f3 {[%clk 0:00:30]}  g5 {[%clk 0:01:54]} 31. Nb3 {[%clk 0:00:29]}  Bd5 {[%clk 0:01:52]} 32. Na5 {[%clk 0:00:24]}  Bxa2 {[%clk 0:01:50]} 33. Rxe7 {[%clk 0:00:23]}  Kxe7 {[%clk 0:01:46]} 34. Nc6+ {[%clk 0:00:23]}  Kd7 {[%clk 0:01:40]} 35. Nxb8+ {[%clk 0:00:24]}  Kc7 {[%clk 0:01:31]} 36. Na6+ {[%clk 0:00:24]}  Kb7 {[%clk 0:01:32]} 37. b5 {[%clk 0:00:23]}  Bc4 {[%clk 0:01:28]} 38. Nb4 {[%clk 0:00:21]}  Bxb5 {[%clk 0:01:27]} 39. Kf2 {[%clk 0:00:21]}  e4 {[%clk 0:01:22]} 40. Bd4 {[%clk 0:00:20]}  Bxd4+ {[%clk 0:01:15]} 41. cxd4 {[%clk 0:00:21]}  exf3 {[%clk 0:01:11]} 42. Kxf3 {[%clk 0:00:21]}  Bc4 {[%clk 0:01:09]} 43. h4 {[%clk 0:00:19]}  Kc7 {[%clk 0:01:06]} 44. hxg5 {[%clk 0:00:19]}  hxg5 {[%clk 0:01:06]} 45. Nc2 {[%clk 0:00:18]}  Kd7 {[%clk 0:01:03]} 46. Ne3 {[%clk 0:00:19]}  Bd3 {[%clk 0:01:04]} 47. g4 {[%clk 0:00:18]}  Be4+ {[%clk 0:01:02]} 48. Kf2 {[%clk 0:00:17]}  f4 {[%clk 0:01:02]} 49. Nc4 {[%clk 0:00:17]}  Ke6 {[%clk 0:01:00]} 50. Nd2 {[%clk 0:00:04]}  Bc2 {[%clk 0:01:00]} 51. Nf3 {[%clk 0:00:03]}  Kf6 {[%clk 0:00:57]} 52. Ke2 {[%clk 0:00:03]}  Ba4 {[%clk 0:00:54]} 53. Kd3 {[%clk 0:00:03]}  Bd1 {[%clk 0:00:52]} 54. Nd2 {[%clk 0:00:03]}  Bxg4 {[%clk 0:00:50]} 55. Ne4+ {[%clk 0:00:03]}  Ke6 {[%clk 0:00:39]} 56. Nxg5+ {[%clk 0:00:04]}  Kf5 {[%clk 0:00:40]} 57. Nf7 {[%clk 0:00:03]}  d5 {[%clk 0:00:37]} 58. Ne5 {[%clk 0:00:03]}  Kg5 {[%clk 0:00:34]} 59. Nf7+ {[%clk 0:00:02]}  Kh4 {[%clk 0:00:34]} 60. Ne5 {[%clk 0:00:01]}  Kg3 {[%clk 0:00:32]} 61. Kd2 {[%clk 0:00:01]}  f3 {[%clk 0:00:30]} 62. Ke3 {[%clk 0:00:01]}  f2 {[%clk 0:00:28]} 63. Nxg4 {[%clk 0:00:01]}  f1=Q {[%clk 0:00:25]} 64. Ne5 {[%clk 0:00:01]}  Qf4+ {[%clk 0:00:20]} 0-1


[Site "https://www.chess.com"]

[Event "Titled Tuesday Blitz February 07 Late 2023"]
[White "Garcia Almaguer, Juan Manuel"]
[Black "Jeziel_Vale"]
[WhiteFideId "5110491"]
[WhiteElo "2090"]
[BlackElo "2276"]
[Result "1/2-1/2"]
[Round "11"]
[TimeControl "180+2"]
[Date "2023.02.07"]
[WhiteClock "0:00:20"]
[BlackClock "0:00:04"]

1. e4 {[%clk 0:02:45]}  c5 {[%clk 0:03:00]} 2. Nc3 {[%clk 0:02:39]}  a6 {[%clk 0:02:59]} 3. d4 {[%clk 0:02:37]}  cxd4 {[%clk 0:02:59]} 4. Qxd4 {[%clk 0:02:38]}  Nc6 {[%clk 0:02:59]} 5. Qd2 {[%clk 0:02:38]}  Nf6 {[%clk 0:02:59]} 6. b3 {[%clk 0:02:37]}  e6 {[%clk 0:02:46]} 7. Bb2 {[%clk 0:02:36]}  Bb4 {[%clk 0:02:46]} 8. f3 {[%clk 0:02:35]}  d5 {[%clk 0:02:44]} 9. exd5 {[%clk 0:02:20]}  Nxd5 {[%clk 0:02:42]} 10. O-O-O {[%clk 0:02:19]}  O-O {[%clk 0:02:32]} 11. Bc4 {[%clk 0:02:13]}  Nxc3 {[%clk 0:02:26]} 12. Bxc3 {[%clk 0:02:12]}  Qa5 {[%clk 0:02:16]} 13. Bxb4 {[%clk 0:01:57]}  Nxb4 {[%clk 0:02:17]} 14. c3 {[%clk 0:01:53]}  Nxa2+ {[%clk 0:01:50]} 15. Kb2 {[%clk 0:01:51]}  b5 {[%clk 0:01:48]} 16. Bd5 {[%clk 0:01:05]}  exd5 {[%clk 0:01:35]} 17. Ra1 {[%clk 0:01:04]}  b4 {[%clk 0:01:33]} 18. Rxa2 {[%clk 0:01:04]}  bxc3+ {[%clk 0:01:33]} 19. Qxc3 {[%clk 0:01:05]}  Qxc3+ {[%clk 0:01:30]} 20. Kxc3 {[%clk 0:01:06]}  Be6 {[%clk 0:01:31]} 21. Ne2 {[%clk 0:01:05]}  Rfc8+ {[%clk 0:01:22]} 22. Kd2 {[%clk 0:01:05]}  d4 {[%clk 0:01:11]} 23. Nxd4 {[%clk 0:01:04]}  Rd8 {[%clk 0:01:11]} 24. Ke3 {[%clk 0:01:04]}  Rac8 {[%clk 0:01:07]} 25. Nxe6 {[%clk 0:01:01]}  fxe6 {[%clk 0:01:07]} 26. Rxa6 {[%clk 0:01:01]}  Rc3+ {[%clk 0:01:03]} 27. Kf4 {[%clk 0:01:01]}  Rxb3 {[%clk 0:01:03]} 28. Rxe6 {[%clk 0:01:00]}  Rd2 {[%clk 0:01:01]} 29. Rg1 {[%clk 0:00:39]}  Rbb2 {[%clk 0:00:57]} 30. Kg3 {[%clk 0:00:39]}  h6 {[%clk 0:00:52]} 31. h4 {[%clk 0:00:39]}  Kh7 {[%clk 0:00:48]} 32. h5 {[%clk 0:00:38]}  Ra2 {[%clk 0:00:46]} 33. Re5 {[%clk 0:00:37]}  Rab2 {[%clk 0:00:42]} 34. Kh3 {[%clk 0:00:37]}  Rf2 {[%clk 0:00:41]} 35. Rf5 {[%clk 0:00:36]}  Ra2 {[%clk 0:00:37]} 36. g4 {[%clk 0:00:35]}  Rh2+ {[%clk 0:00:24]} 37. Kg3 {[%clk 0:00:35]}  Rhe2 {[%clk 0:00:19]} 38. Rb1 {[%clk 0:00:34]}  Rg2+ {[%clk 0:00:19]} 39. Kf4 {[%clk 0:00:33]}  Ra4+ {[%clk 0:00:18]} 40. Ke3 {[%clk 0:00:33]}  Ra3+ {[%clk 0:00:17]} 41. Kd4 {[%clk 0:00:33]}  Ra4+ {[%clk 0:00:17]} 42. Kc3 {[%clk 0:00:31]}  Rg3 {[%clk 0:00:12]} 43. Rb3 {[%clk 0:00:31]}  Ra7 {[%clk 0:00:11]} 44. Kd4 {[%clk 0:00:29]}  Rd7+ {[%clk 0:00:10]} 45. Ke5 {[%clk 0:00:29]}  Re7+ {[%clk 0:00:10]} 46. Kd6 {[%clk 0:00:29]}  Ra7 {[%clk 0:00:09]} 47. Re3 {[%clk 0:00:27]}  Rg1 {[%clk 0:00:08]} 48. Rd5 {[%clk 0:00:25]}  Rga1 {[%clk 0:00:06]} 49. Red3 {[%clk 0:00:20]}  R1a6+ {[%clk 0:00:06]} 50. Ke5 {[%clk 0:00:21]}  Re7+ {[%clk 0:00:06]} 51. Kf4 {[%clk 0:00:21]}  Rf6+ {[%clk 0:00:05]} 52. Kg3 {[%clk 0:00:22]}  Ref7 {[%clk 0:00:05]} 53. R5d4 {[%clk 0:00:21]}  Rf8 {[%clk 0:00:05]} 54. Rc3 {[%clk 0:00:22]}  Kh8 {[%clk 0:00:04]} 55. Rb4 {[%clk 0:00:22]}  Kh7 {[%clk 0:00:05]} 56. f4 {[%clk 0:00:22]}  Rd8 {[%clk 0:00:03]} 57. g5 {[%clk 0:00:20]}  hxg5 {[%clk 0:00:03]} 58. fxg5 {[%clk 0:00:21]}  Rf5 {[%clk 0:00:04]} 59. Rg4 {[%clk 0:00:20]}  Rdd5 {[%clk 0:00:03]} 60. Kh4 {[%clk 0:00:21]}  Rd1 {[%clk 0:00:02]} 61. Rh3 {[%clk 0:00:19]}  Rff1 {[%clk 0:00:03]} 62. h6 {[%clk 0:00:18]}  gxh6 {[%clk 0:00:03]} 63. Kh5 {[%clk 0:00:17]}  Rf5 {[%clk 0:00:02]} 64. Kh4 {[%clk 0:00:16]}  Rxg5 {[%clk 0:00:02]} 65. Rxg5 {[%clk 0:00:17]}  hxg5+ {[%clk 0:00:03]} 66. Kxg5+ {[%clk 0:00:18]}  Kg7 {[%clk 0:00:04]} 67. Rf3 {[%clk 0:00:18]}  Rd7 {[%clk 0:00:04]} 68. Rf5 {[%clk 0:00:19]}  Rf7 {[%clk 0:00:05]} 69. Rc5 {[%clk 0:00:19]}  Kf8 {[%clk 0:00:05]} 70. Rc6 {[%clk 0:00:19]}  Ke7 {[%clk 0:00:04]} 71. Kg6 {[%clk 0:00:19]}  Rf2 {[%clk 0:00:04]} 72. Rb6 {[%clk 0:00:19]}  Kd7 {[%clk 0:00:05]} 73. Ra6 {[%clk 0:00:19]}  Kc7 {[%clk 0:00:05]} 74. Rf6 {[%clk 0:00:19]}  Rxf6+ {[%clk 0:00:04]} 75. Kxf6 {[%clk 0:00:20]} 1/2-1/2


[Site "https://www.chess.com"]

[Event "Titled Tuesday Blitz February 07 Late 2023"]
[White "Hoffmann, Asa"]
[Black "ritanovikova"]
[WhiteFideId "2001470"]
[WhiteElo "2185"]
[BlackElo "2226"]
[Result "1-0"]
[Round "11"]
[TimeControl "180+2"]
[Date "2023.02.07"]
[WhiteClock "0:00:59"]
[BlackClock "0:00:06"]

1. d4 {[%clk 0:02:52]}  Nf6 {[%clk 0:02:57]} 2. Bg5 {[%clk 0:02:51]}  e6 {[%clk 0:02:53]} 3. Nd2 {[%clk 0:02:50]}  d5 {[%clk 0:02:52]} 4. e3 {[%clk 0:02:49]}  Be7 {[%clk 0:02:50]} 5. Bd3 {[%clk 0:02:47]}  h6 {[%clk 0:02:49]} 6. Bh4 {[%clk 0:02:47]}  c5 {[%clk 0:02:49]} 7. c3 {[%clk 0:02:47]}  Nc6 {[%clk 0:02:47]} 8. f4 {[%clk 0:02:47]}  Qb6 {[%clk 0:02:46]} 9. Rb1 {[%clk 0:02:47]}  Ng8 {[%clk 0:02:35]} 10. Bg3 {[%clk 0:02:45]}  Nf6 {[%clk 0:02:34]} 11. Ngf3 {[%clk 0:02:44]}  Bd7 {[%clk 0:02:33]} 12. O-O {[%clk 0:02:44]}  O-O {[%clk 0:02:30]} 13. Ne5 {[%clk 0:02:43]}  cxd4 {[%clk 0:02:25]} 14. exd4 {[%clk 0:02:42]}  Rad8 {[%clk 0:01:56]} 15. Ndf3 {[%clk 0:02:40]}  Ne4 {[%clk 0:01:55]} 16. Nxd7 {[%clk 0:02:27]}  Rxd7 {[%clk 0:01:52]} 17. Bxe4 {[%clk 0:02:27]}  dxe4 {[%clk 0:01:51]} 18. Ne5 {[%clk 0:02:27]}  Rd5 {[%clk 0:01:26]} 19. Qe2 {[%clk 0:02:24]}  f5 {[%clk 0:01:12]} 20. Qh5 {[%clk 0:02:20]}  Nxe5 {[%clk 0:01:04]} 21. fxe5 {[%clk 0:02:19]}  Qd8 {[%clk 0:00:48]} 22. Bf4 {[%clk 0:02:18]}  Qe8 {[%clk 0:00:47]} 23. Qxe8 {[%clk 0:01:57]}  Rxe8 {[%clk 0:00:48]} 24. Be3 {[%clk 0:01:57]}  b5 {[%clk 0:00:48]} 25. a4 {[%clk 0:01:55]}  a6 {[%clk 0:00:47]} 26. axb5 {[%clk 0:01:55]}  axb5 {[%clk 0:00:48]} 27. b3 {[%clk 0:01:55]}  Rc8 {[%clk 0:00:47]} 28. Rfc1 {[%clk 0:01:54]}  Ba3 {[%clk 0:00:45]} 29. Rc2 {[%clk 0:01:52]}  g5 {[%clk 0:00:43]} 30. c4 {[%clk 0:01:51]}  bxc4 {[%clk 0:00:42]} 31. bxc4 {[%clk 0:01:51]}  Rd7 {[%clk 0:00:38]} 32. g3 {[%clk 0:01:51]}  Rf7 {[%clk 0:00:36]} 33. Rb6 {[%clk 0:01:49]}  Re8 {[%clk 0:00:34]} 34. c5 {[%clk 0:01:45]}  f4 {[%clk 0:00:34]} 35. gxf4 {[%clk 0:01:40]}  gxf4 {[%clk 0:00:35]} 36. Bd2 {[%clk 0:01:36]}  e3 {[%clk 0:00:35]} 37. Be1 {[%clk 0:01:36]}  f3 {[%clk 0:00:34]} 38. c6 {[%clk 0:01:35]}  Kh7 {[%clk 0:00:32]} 39. Bg3 {[%clk 0:01:27]}  Rg8 {[%clk 0:00:30]} 40. c7 {[%clk 0:01:25]}  f2+ {[%clk 0:00:28]} 41. Kf1 {[%clk 0:01:24]}  Rff8 {[%clk 0:00:24]} 42. Rxe6 {[%clk 0:01:20]}  h5 {[%clk 0:00:22]} 43. Rf6 {[%clk 0:01:17]}  Rc8 {[%clk 0:00:21]} 44. d5 {[%clk 0:01:17]}  h4 {[%clk 0:00:21]} 45. Rc4 {[%clk 0:01:10]}  Rg6 {[%clk 0:00:20]} 46. Rxh4+ {[%clk 0:01:09]}  Kg7 {[%clk 0:00:20]} 47. Rxg6+ {[%clk 0:01:09]}  Kxg6 {[%clk 0:00:21]} 48. d6 {[%clk 0:01:08]}  Kf7 {[%clk 0:00:19]} 49. Ra4 {[%clk 0:01:03]}  Bc5 {[%clk 0:00:12]} 50. d7 {[%clk 0:01:03]}  Rxc7 {[%clk 0:00:09]} 51. d8=Q {[%clk 0:01:01]}  Re7 {[%clk 0:00:08]} 52. e6+ {[%clk 0:01:01]}  Rxe6 {[%clk 0:00:07]} 53. Rf4+ {[%clk 0:00:59]}  Kg6 {[%clk 0:00:06]} 54. Qg8+ {[%clk 0:00:59]} 1-0


[Site "https://www.chess.com"]